bitfinex-derivatives/quotes_ETHF0:USTF0_20250115
["timestamp","ask_amount","ask_price","bid_price","bid_amount"]
[1736956553348,5.75245068,3342.5,3342.4,46.07840834]
[1736956554552,1.7071,3343.0,3342.4,45.48004834]
[1736956554757,1.7071,3343.0,3342.9,0.59827]
[1736956554961,2.30535,3343.0,3342.9,0.59827]
[1736956555259,1.7071,3343.0,3342.9,0.59827]
[1736956556055,2.30535,3343.0,3342.9,0.59827]
[1736956556446,1.7071,3343.0,3342.9,0.59827]
[1736956557054,7.20484834,3343.4,3342.8,1.406]
[1736956557055,4.9326,3343.4,3342.8,1.406]
[1736956557258,3.2078,3343.4,3343.3,0.59819]
[1736956557951,3.2078,3343.4,3342.9,3.4726]
[1736956558147,2.27224834,3343.1,3342.4,1.49588]
[1736956558351,0.59826,3343.0,3342.9,0.59826]
[1736956558556,3.2078,3343.4,3342.7,2.27224834]
[1736956558760,3.2078,3343.4,3343.3,0.59819]
[1736956558956,8.6641071,3343.8,3343.3,0.59819]
[1736956558957,8.6641071,3343.8,3343.6,0.59814]
[1736956559353,2.36502,3343.7,3343.6,0.59814]
[1736956559554,1.7669,3343.7,3343.6,0.59814]
[1736956560456,5.6554,3343.9,3343.8,0.59811]
[1736956560653,5.65539,3343.9,3343.8,0.59811]
[1736956560851,5.0573,3343.9,3343.8,0.59811]
[1736956561056,3.2078,3343.9,3343.8,0.59811]
[1736956561563,9.2182824,3344.0,3343.9,0.59809]
[1736956565164,0.59817,3343.6,3343.5,1.406]
[1736956565365,3.80597,3343.6,3343.5,1.406]
[1736956565664,3.4497,3343.9,3343.5,1.406]
[1736956565851,4.0478,3343.9,3343.7,0.59812]
[1736956566056,1.7347,3343.9,3343.8,2.27224834]
[1736956566361,9.8163624,3344.0,3343.5,3.67824834]
[1736956566552,0.59809,3343.9,3343.5,3.67824834]
[1736956566752,0.59811,3343.8,3343.7,0.59812]
[1736956567055,9.2182824,3344.0,3343.7,1.406]
[1736956567255,9.2182824,3344.0,3343.9,0.59809]
[1736956567666,9.2182824,3344.0,3343.9,2.34129]
[1736956567855,9.2182824,3344.0,3343.9,42.34129]
[1736956568361,9.8163724,3344.0,3343.8,2.87034834]
[1736956568563,3.2078,3344.2,3343.8,2.27224834]
[1736956568867,0.59806,3344.1,3344.0,0.59806]
[1736956569062,3.80584,3344.2,3343.9,41.7432]
[1736956569257,3.2078,3344.2,3343.9,40.0]
[1736956569467,3.2078,3344.2,3343.7,1.406]
[1736956569666,3.80591,3343.8,3343.7,1.406]
[1736956569967,3.2078,3343.8,3343.4,0.59816]
[1736956570158,1.7374,3343.7,3343.4,0.59816]
[1736956570364,1.7374,3343.7,3343.4,2.00116]
[1736956570666,0.59818,3343.4,3343.3,2.00119]
[1736956571257,0.5982,3343.3,3343.2,2.27224834]
[1736956571457,3.2078,3343.4,3342.6,2.27224834]
[1736956571767,3.2078,3343.4,3342.7,1.49577]
[1736956571962,3.80598,3343.4,3343.3,0.5982]
[1736956572269,0.59821,3343.3,3343.2,0.59821]
[1736956572463,3.2078,3343.4,3342.9,2.27224834]
[1736956573265,0.5982,3343.3,3343.2,0.5982]
[1736956573465,3.80599,3343.4,3343.3,0.5982]
[1736956573872,1.7215,3343.6,3343.2,2.27224834]
[1736956574060,1.7215,3343.6,3343.5,0.59816]
[1736956574260,3.2078,3343.8,3343.3,4.9278]
[1736956574468,3.2078,3343.8,3343.7,0.59813]
[1736956574868,3.80591,3343.8,3343.7,0.59813]
[1736956575066,0.59813,3343.7,3343.6,0.59813]
[1736956575266,3.2078,3343.8,3343.7,0.59813]
[1736956575466,3.2078,3343.8,3343.6,0.59813]
[1736956575667,0.59816,3343.6,3343.5,0.59816]
[1736956575863,0.59814,3343.7,3343.6,0.59813]
[1736956576068,0.59816,3343.6,3343.5,0.59815]
[1736956576273,0.59821,3343.3,3343.2,0.59819]
[1736956576469,3.2078,3343.3,3342.9,1.7183]
[1736956576662,0.59825,3343.0,3342.9,1.7183]
[1736956576969,3.2078,3343.3,3342.4,12.26986]
[1736956576970,3.5628,3343.2,3342.5,1.404]
[1736956577172,3.2078,3342.6,3341.9,5.0266]
[1736956577473,3.2078,3342.2,3341.3,3.67624834]
[1736956577672,2.27224834,3342.4,3341.7,0.59848]
[1736956577673,3.2078,3341.8,3341.7,0.59848]
[1736956578358,1.7515,3342.1,3341.6,2.27224834]
[1736956578562,3.2078,3342.0,3341.9,0.59844]
[1736956578968,3.80623,3342.0,3341.6,2.27224834]
[1736956579170,3.2078,3342.0,3341.9,0.59845]
[1736956579672,3.2078,3342.0,3341.9,2.87069834]
[1736956580571,3.2078,3342.4,3342.3,0.59837]
[1736956580879,3.80616,3342.4,3342.2,0.59838]
[1736956581166,3.2078,3342.4,3342.0,3.6072]
[1736956581470,3.2078,3342.4,3342.1,0.5984]
[1736956581660,0.59839,3342.3,3342.1,0.59841]
[1736956581860,0.59839,3342.2,3342.1,0.59841]
[1736956582367,3.80617,3342.4,3342.2,0.59839]
[1736956582569,3.2078,3342.4,3342.3,0.59838]
[1736956583069,3.2078,3342.4,3342.1,40.0]
[1736956583272,0.59838,3342.3,3342.2,0.59839]
[1736956583472,0.59839,3342.2,3342.1,40.0]
[1736956584173,0.59842,3342.1,3341.9,2.00244]
[1736956584471,0.59842,3342.1,3341.9,1.404]
[1736956584669,3.2078,3342.4,3342.0,40.0]
[1736956584971,3.2078,3342.4,3342.0,40.59842]
[1736956584972,0.59841,3342.2,3342.0,40.59842]
[1736956585572,0.59839,3342.3,3342.1,0.5984]
[1736956585876,0.59842,3342.1,3342.0,40.59842]
[1736956586072,3.2078,3342.4,3342.0,40.59842]
[1736956586270,0.5984,3342.2,3342.1,0.59841]
[1736956586472,0.59842,3342.1,3342.0,40.0]
[1736956586779,0.59838,3342.3,3341.9,2.00244]
[1736956587073,0.59843,3342.0,3341.9,1.404]
[1736956587269,3.2078,3342.0,3341.7,40.0]
[1736956587476,3.2078,3342.0,3341.7,0.59849]
[1736956587664,2.28947,3341.9,3341.7,0.59848]
[1736956587866,2.34147,3341.8,3341.7,0.59848]
[1736956588067,1.743,3341.8,3341.7,0.59848]
[1736956588769,1.743,3341.8,3341.6,0.5985]
[1736956588969,0.59856,3341.3,3341.2,1.7288]
[1736956589173,3.2078,3341.3,3340.5,3.2078]
[1736956589474,0.59867,3340.8,3340.2,1.404]
[1736956589666,3.2078,3340.9,3340.2,1.404]
[1736956589869,3.2078,3340.5,3340.0,5.81384834]
[1736956590071,3.2078,3340.5,3340.0,3.5416]
[1736956590377,0.59883,3339.8,3339.7,0.23729245]
[1736956590677,5.48004834,3340.1,3339.3,4.66255542]
[1736956591069,0.59879,3340.0,3339.4,0.59888]
[1736956591268,5.48004834,3340.1,3339.4,0.59888]
[1736956591269,0.59885,3339.7,3339.4,0.59888]
[1736956591572,0.59887,3339.6,3339.1,1.404]
[1736956591769,3.2078,3339.7,3339.3,0.59891]
[1736956591974,0.59889,3339.5,3339.3,0.59891]
[1736956592170,3.2078,3339.7,3339.1,1.404]
[1736956592675,0.59886,3339.6,3339.3,0.59892]
[1736956592872,3.2078,3339.7,3339.1,1.404]
[1736956593074,3.2078,3339.7,3339.3,0.5989]
[1736956593373,0.59888,3339.6,3339.4,0.59889]
[1736956593675,3.2078,3339.7,3339.1,1.404]
[1736956594065,3.80665,3339.7,3339.5,0.59887]
[1736956594270,0.59886,3339.6,3339.5,0.59888]
[1736956594470,0.59887,3339.6,3339.4,0.59889]
[1736956594673,0.59888,3339.5,3339.3,0.5989]
[1736956594869,0.59888,3339.6,3339.1,1.404]
[1736956595172,3.2078,3339.7,3339.6,0.59886]
[1736956595972,3.2078,3340.1,3340.0,0.59879]
[1736956596676,3.2078,3340.1,3340.0,42.28659]
[1736956599289,3.2078,3340.8,3340.0,44.8956]
[1736956599576,3.80646,3340.8,3340.6,0.59867]
[1736956599776,3.80646,3340.8,3340.7,2.00167]
[1736956599977,3.80646,3340.8,3340.7,1.403]
[1736956600774,3.2078,3340.8,3340.7,2.00167]
[1736956602272,3.80638,3341.2,3340.7,1.403]
[1736956602474,3.80638,3341.2,3341.1,0.59859]
[1736956602475,3.2078,3341.2,3341.1,0.59859]
[1736956602672,1.49621,3341.8,3340.8,4.64741618]
[1736956602673,0.59855,3341.4,3341.2,0.59857]
[1736956602876,0.59855,3341.4,3340.8,4.64741618]
[1736956603073,0.59855,3341.4,3341.2,0.59856]
[1736956603373,3.2078,3341.6,3340.8,1.7196]
[1736956603577,3.2078,3341.2,3340.8,1.7196]
[1736956603780,3.80639,3341.2,3341.1,0.59859]
[1736956604180,0.5986,3341.1,3341.0,0.59861]
[1736956604372,3.2078,3341.2,3341.1,0.59859]
[1736956604579,0.59858,3341.2,3341.1,0.59859]
[1736956604781,3.2078,3341.3,3340.9,1.403]
[1736956604970,0.59861,3341.0,3340.9,1.403]
[1736956605177,3.2078,3341.3,3341.0,0.59859]
[1736956605178,0.5986,3341.1,3341.0,0.59859]
[1736956605983,1.7584,3341.2,3340.9,1.403]
[1736956606281,0.5986,3341.1,3341.0,0.5986]
[1736956607972,0.5986,3341.1,3340.8,1.403]
[1736956607973,3.2078,3341.3,3340.8,1.403]
[1736956608180,3.80637,3341.3,3341.2,0.59856]
[1736956608378,3.2078,3341.3,3341.2,0.59858]
[1736956608778,0.59852,3341.6,3340.9,1.8347]
[1736956609089,0.59853,3341.6,3341.5,0.59851]
[1736956609986,4.9064,3341.7,3341.0,1.7022]
[1736956610179,0.59859,3341.2,3341.1,0.59858]
[1736956610579,0.59857,3341.3,3341.2,0.59856]
[1736956610987,0.59855,3341.4,3341.3,0.59855]
[1736956611483,0.59858,3341.3,3341.2,0.59857]
[1736956612184,0.59859,3341.2,3341.1,0.59858]
[1736956612384,3.2078,3341.3,3341.0,3.1052]
[1736956612689,0.59859,3341.2,3341.1,0.59858]
[1736956613179,3.2078,3341.3,3341.0,3.1052]
[1736956613375,0.59859,3341.2,3341.1,0.59859]
[1736956613582,3.2078,3341.3,3341.2,0.59858]
[1736956614082,4.9064,3341.7,3341.1,2.27156014]
[1736956614279,0.59859,3341.2,3341.1,0.59858]
[1736956614483,0.59859,3341.1,3341.0,1.403]
[1736956614784,0.59859,3341.1,3340.3,4.70465]
[1736956614785,1.4965,3341.1,3340.4,1.403]
[1736956614988,0.59865,3340.8,3340.7,0.59866]
[1736956615183,0.59861,3341.1,3341.0,0.59861]
[1736956615483,0.59858,3341.2,3341.1,0.59858]
[1736956615786,4.9064,3341.7,3341.6,0.5985]
[1736956615988,3.2078,3341.7,3341.6,0.5985]
[1736956617283,3.2078,3341.7,3341.5,1.6795]
[1736956617284,4.8857,3342.3,3341.7,1.4962]
[1736956617485,3.2078,3342.3,3342.2,0.5984]
[1736956617785,3.8062,3342.3,3341.7,1.4962]
[1736956617986,3.80618,3342.3,3342.2,0.5984]
[1736956618185,3.2078,3342.3,3342.2,0.5984]
[1736956618386,0.59838,3342.3,3342.2,0.5984]
[1736956618687,0.59838,3342.3,3341.7,1.4962]
[1736956618688,0.5984,3342.2,3342.1,0.59841]
[1736956618890,0.5984,3342.2,3342.1,0.59842]
[1736956619493,1.7901,3342.7,3342.5,0.59833]
[1736956619692,1.7901,3342.7,3342.2,1.403]
[1736956620295,6.65777406,3342.6,3342.2,2.00139]
[1736956620479,0.59838,3342.3,3342.2,1.403]
[1736956620889,0.59838,3342.3,3342.2,2.0014]
[1736956621894,3.2078,3342.6,3342.2,1.403]
[1736956622092,3.80614,3342.6,3342.2,1.403]
[1736956622290,3.80613,3342.6,3342.5,0.59834]
[1736956622594,0.59838,3342.3,3342.2,2.00137]
[1736956622791,0.59836,3342.5,3342.4,0.59835]
[1736956622988,3.2078,3342.6,3342.2,1.403]
[1736956623184,3.2078,3342.6,3342.5,0.59834]
[1736956623394,3.80613,3342.6,3342.5,0.59834]
[1736956623695,0.59836,3342.5,3342.4,0.59836]
[1736956623883,0.59837,3342.4,3342.3,0.59837]
[1736956624083,0.59836,3342.5,3342.4,0.59834]
[1736956624506,3.2078,3342.6,3342.1,1.402]
[1736956624797,3.80613,3342.6,3342.5,0.59834]
[1736956625493,0.59835,3342.5,3342.4,0.59835]
[1736956625901,3.2078,3342.6,3342.1,1.402]
[1736956626192,0.5984,3342.2,3342.1,2.00041]
[1736956626697,3.2078,3342.6,3342.5,0.59834]
[1736956627191,2.38841,3342.7,3342.6,0.59833]
[1736956627192,1.7901,3342.7,3342.6,0.59833]
[1736956627494,0.59828,3342.9,3342.8,0.59828]
[1736956627897,3.2078,3343.1,3342.4,4.88818]
[1736956628098,0.59829,3342.9,3342.8,0.59828]
[1736956628293,0.59828,3342.9,3342.5,0.59834]
[1736956628490,3.2078,3343.1,3342.6,2.27156014]
[1736956628695,3.2078,3343.1,3343.0,0.59825]
[1736956628896,3.80604,3343.1,3343.0,0.59825]
[1736956629201,0.59825,3343.0,3342.9,1.402]
[1736956629397,1.736,3343.0,3342.3,1.4]
[1736956629599,0.59836,3342.4,3342.3,1.99838]
[1736956629793,0.59836,3342.4,3341.9,1.7368]
[1736956630100,3.76765014,3342.0,3341.0,4.66255542]
[1736956630303,0.59851,3341.6,3341.4,0.59853]
[1736956630600,0.59859,3341.2,3340.9,3.4904]
[1736956630799,3.2078,3341.5,3340.9,0.59862]
[1736956630800,6.20631371,3341.5,3340.9,0.59862]
[1736956631001,3.432,3341.4,3340.8,2.27156014]
[1736956631298,3.80633,3341.5,3341.3,0.59856]
[1736956631504,3.80633,3341.5,3341.4,0.59854]
[1736956631505,3.2078,3341.5,3341.4,0.59854]
[1736956631701,3.2078,3341.9,3341.8,0.59847]
[1736956632095,3.2078,3341.9,3341.5,1.7694]
[1736956632497,6.63411,3342.5,3341.7,2.27156014]
[1736956632498,3.3771,3342.5,3341.7,2.27156014]
[1736956632704,0.59837,3342.4,3342.2,0.59839]
[1736956632906,3.80619,3342.3,3342.1,0.5984]
[1736956633404,3.80619,3342.3,3341.7,2.27156014]
[1736956633698,0.5984,3342.3,3342.1,0.59841]
[1736956633902,3.3771,3342.5,3341.7,2.27156014]
[1736956634101,0.59839,3342.3,3342.2,0.59839]
[1736956634405,3.3771,3342.5,3342.4,0.59836]
[1736956634406,1.696,3342.5,3342.4,0.59836]
[1736956634700,0.59835,3342.5,3342.4,0.59835]
[1736956635098,0.59835,3342.5,3342.4,0.59836]
[1736956635603,0.59836,3342.4,3342.3,0.59837]
[1736956635802,3.2078,3342.7,3342.2,3.0905]
[1736956636004,0.59835,3342.5,3342.4,0.59836]
[1736956636509,0.59838,3342.4,3342.3,0.59837]
[1736956636798,3.33993,3342.9,3342.3,3.2078]
[1736956636799,1.8442,3342.9,3342.3,3.2078]
[1736956637004,1.8126,3343.1,3342.3,5.47936014]
[1736956637206,0.59826,3343.0,3342.6,2.27156014]
[1736956637402,1.7725,3343.4,3342.6,2.27156014]
[1736956637609,0.5982,3343.3,3343.1,0.59823]
[1736956637805,0.59822,3343.2,3343.1,0.59823]
[1736956637995,0.59821,3343.3,3343.2,0.5982]
[1736956638311,1.7725,3343.4,3343.0,3.1681]
[1736956639006,1.7725,3343.4,3343.3,0.5982]
[1736956639209,0.59813,3343.8,3343.4,0.59818]
[1736956639405,0.59819,3343.4,3343.3,0.5982]
[1736956639601,0.59818,3343.5,3343.3,0.59819]
[1736956639903,3.2078,3343.6,3343.1,1.8343]
[1736956640108,0.59817,3343.5,3343.2,0.59821]
[1736956640402,3.2078,3343.6,3343.5,0.59817]
[1736956640906,3.80594,3343.6,3343.5,0.59817]
[1736956641409,0.59821,3343.2,3343.1,2.43252]
[1736956641602,3.2078,3343.6,3343.1,1.8343]
[1736956641802,0.5982,3343.3,3343.2,0.5982]
[1736956642004,3.2078,3343.6,3343.1,1.8343]
[1736956642207,0.59819,3343.4,3343.2,0.59821]
[1736956642504,3.2078,3343.6,3343.1,1.8343]
[1736956642806,3.80594,3343.6,3343.5,0.59816]
[1736956643009,3.2078,3343.6,3343.1,1.8343]
[1736956643200,3.80595,3343.6,3343.1,1.8343]
[1736956643400,3.2078,3343.6,3343.3,0.59819]
[1736956643611,0.59816,3343.5,3343.3,0.59819]
[1736956643803,0.59819,3343.4,3343.2,0.5982]
[1736956644203,3.2078,3343.6,3343.1,1.8343]
[1736956644402,0.59821,3343.3,3343.2,0.59821]
[1736956644604,0.59821,3343.3,3343.1,2.43252]
[1736956644904,0.59821,3343.3,3343.1,1.8343]
[1736956645109,0.59819,3343.4,3343.2,0.5982]
[1736956645310,3.2078,3343.6,3343.1,1.8343]
[1736956645710,3.2078,3343.6,3343.5,0.59816]
[1736956646209,0.59811,3343.8,3343.6,0.59813]
[1736956646401,0.5981,3343.9,3343.2,3.2078]
[1736956646707,3.2078,3344.0,3343.8,0.59809]
[1736956646908,0.59807,3344.0,3343.9,0.59808]
[1736956647109,3.5977,3344.1,3343.4,2.92102589]
[1736956647414,0.5981,3343.9,3343.7,0.59811]
[1736956647604,0.59812,3343.8,3343.6,0.59813]
[1736956647805,0.59812,3343.8,3343.7,1.4]
[1736956648005,3.5977,3344.1,3343.7,1.4]
[1736956648208,0.5981,3343.9,3343.7,1.99811]
[1736956648407,0.59811,3343.8,3343.7,1.4]
[1736956648611,3.8059,3343.9,3343.8,0.59811]
[1736956648804,3.2078,3343.9,3343.8,0.59811]
[1736956649316,3.80589,3343.9,3343.7,1.4]
[1736956649611,3.2078,3343.9,3343.8,0.59811]
[1736956649811,3.8059,3343.9,3343.8,0.59811]
[1736956650208,4.19577,3344.1,3343.8,0.59811]
[1736956650414,9.71664083,3344.2,3343.7,1.4]
[1736956650619,0.59808,3344.0,3343.9,0.59808]
[1736956650811,9.71664083,3344.2,3343.8,1.6741]
[1736956651007,0.59809,3343.9,3343.8,1.6741]
[1736956651305,9.71664083,3344.2,3343.2,3.2078]
[1736956651612,0.59809,3343.9,3343.8,0.5981]
[1736956651808,0.59813,3343.7,3343.6,0.59814]
[1736956652003,0.59813,3343.7,3343.6,1.4]
[1736956652208,0.59814,3343.6,3343.5,1.4]
[1736956652511,0.59816,3343.5,3343.3,2.27229]
[1736956652815,0.59816,3343.5,3343.4,1.4]
[1736956653706,0.59825,3343.0,3342.9,1.99826]
[1736956653911,0.59833,3342.6,3342.4,0.59836]
[1736956654214,0.59835,3342.5,3342.3,1.99836]
[1736956654416,3.2078,3342.6,3342.3,1.4]
[1736956654603,0.59836,3342.4,3342.3,1.4]
[1736956655416,3.2078,3342.6,3342.3,1.4]
[1736956655611,0.59835,3342.5,3342.3,1.99836]
[1736956655809,0.59836,3342.4,3342.3,1.99836]
[1736956656121,3.80613,3342.6,3342.4,0.59834]
[1736956656322,3.80613,3342.6,3342.4,0.59836]
[1736956656619,3.80613,3342.6,3342.3,1.4]
[1736956656813,0.59835,3342.5,3342.3,0.59836]
[1736956657015,3.2078,3342.6,3342.4,1.4]
[1736956657212,3.80613,3342.6,3342.5,0.59834]
[1736956657519,3.2078,3342.6,3342.5,0.59834]
[1736956657816,3.2078,3342.6,3342.5,1.99834]
[1736956658310,0.59825,3343.1,3342.9,0.59826]
[1736956658311,3.80605,3343.1,3342.9,0.59826]
[1736956658512,0.59826,3343.0,3342.6,0.59832]
[1736956658715,3.2078,3343.1,3342.6,0.59832]
[1736956658716,3.2078,3343.1,3343.0,0.59825]
[1736956658906,3.2078,3343.6,3342.9,1.49568]
[1736956659111,3.2078,3343.6,3342.8,3.2078]
[1736956659112,0.59822,3343.2,3343.1,0.59822]
[1736956659315,3.2078,3343.6,3343.0,1.398]
[1736956659517,3.45394234,3343.5,3343.0,1.398]
[1736956659716,0.59816,3343.5,3343.2,0.59821]
[1736956659911,3.2078,3343.6,3343.5,0.59816]
[1736956660218,0.59818,3343.4,3343.3,41.398]
[1736956660419,0.59818,3343.4,3343.3,1.398]
[1736956665818,0.59831,3342.7,3342.6,0.5983]
[1736956666120,0.59831,3342.7,3342.6,1.398]
[1736956666427,0.59837,3342.4,3342.3,1.99636]
[1736956667226,0.59837,3342.4,3342.2,1.8541]
[1736956667522,0.59837,3342.3,3342.2,1.398]
[1736956667723,4.9544,3342.6,3342.2,1.398]
[1736956667924,0.59835,3342.5,3342.4,0.59835]
[1736956668118,5.55273,3342.6,3342.5,0.59834]
[1736956668317,1.8315,3342.9,3342.2,1.398]
[1736956668516,3.80606,3343.0,3342.4,5.47703378]
[1736956668713,3.2078,3343.0,3342.9,0.59827]
[1736956669825,3.2078,3343.5,3343.4,0.59818]
[1736956670922,1.7749,3343.6,3343.5,0.59816]
[1736956671123,7.00158838,3343.7,3343.6,0.59814]
[1736956671326,5.86001845,3343.7,3343.6,0.59814]
[1736956672422,3.2078,3344.0,3343.9,0.59809]
[1736956672622,3.2078,3344.0,3343.9,1.99609]
[1736956673226,5.86001845,3344.1,3343.9,1.398]
[1736956673429,8.23293845,3344.3,3343.9,1.398]
[1736956673723,7.63491845,3344.3,3343.9,1.398]
[1736956673926,8.23294845,3344.3,3344.1,0.59804]
[1736956674427,7.63491845,3344.3,3344.2,0.59803]
[1736956674624,1.7749,3344.3,3344.2,0.59803]
[1736956675024,1.7749,3344.3,3343.9,1.398]
[1736956675528,2.37292,3344.3,3344.2,0.59803]
[1736956675723,1.7749,3344.3,3344.2,0.59803]
[1736956675918,2.4422,3344.4,3343.9,1.398]
[1736956676124,9.06781845,3344.5,3344.4,0.598]
[1736956676325,9.66579845,3344.5,3344.4,0.598]
[1736956677640,9.06781845,3344.5,3344.4,0.598]
[1736956678433,9.66579845,3344.5,3344.4,0.598]
[1736956679225,11.98809798,3344.5,3343.9,1.398]
[1736956679429,11.98809798,3344.5,3344.0,0.59806]
[1736956679430,0.59807,3344.1,3344.0,0.59806]
[1736956679728,0.59807,3344.1,3344.0,0.59805]
[1736956679927,0.59812,3343.8,3343.6,1.398]
[1736956680128,2.29668,3344.0,3343.9,0.59809]
[1736956680529,3.2078,3344.1,3343.6,1.398]
[1736956680725,3.2078,3344.1,3344.0,0.59807]
[1736956680925,9.06819481,3344.1,3344.0,0.59807]
[1736956681129,9.06819481,3344.1,3343.6,1.398]
[1736956681427,3.2078,3343.7,3342.6,2.92027953]
[1736956681627,3.2078,3343.7,3343.1,1.398]
[1736956681826,3.2078,3343.3,3342.5,43.2078]
[1736956682028,0.5983,3342.8,3342.7,0.5983]
[1736956682233,0.59829,3342.8,3342.7,0.5983]
[1736956682430,3.2078,3342.9,3342.4,6.06055542]
[1736956682635,3.2078,3342.9,3342.4,1.398]
[1736956682829,0.59829,3342.8,3342.7,0.59829]
[1736956683030,3.2078,3342.9,3342.3,3.5227]
[1736956683327,3.2078,3342.9,3342.8,0.59828]
[1736956683732,5.86039481,3343.0,3342.9,0.59827]
[1736956684227,5.86039481,3343.0,3342.6,3.2078]
[1736956684437,0.59824,3343.1,3343.0,0.59823]
[1736956684630,5.86039481,3343.3,3343.2,0.59821]
[1736956685028,0.59822,3343.2,3343.1,0.59822]
[1736956685430,9.06819481,3343.4,3343.0,0.59825]
[1736956685635,9.06819481,3343.4,3342.6,3.2078]
[1736956685931,9.06819481,3343.4,3342.6,4.70358]
[1736956686129,3.22642244,3343.3,3342.6,3.2078]
[1736956686329,1.49554,3343.2,3342.6,3.2078]
[1736956686529,3.2078,3343.0,3342.4,1.398]
[1736956686737,3.80614,3342.5,3342.4,1.398]
[1736956687436,0.59849,3341.7,3341.5,5.26106542]
[1736956687637,0.59847,3341.8,3341.6,0.59849]
[1736956687933,0.59845,3341.9,3341.7,0.59847]
[1736956688137,0.59847,3341.8,3341.6,40.59849]
[1736956688323,3.2078,3342.1,3341.4,1.68]
[1736956688324,0.59846,3341.9,3341.7,0.59847]
[1736956688731,0.59843,3342.0,3341.5,0.5985]
[1736956688935,0.59845,3341.9,3341.4,41.68]
[1736956689224,0.59844,3342.0,3341.8,0.59846]
[1736956689425,0.59843,3342.0,3341.8,0.59846]
[1736956689829,5.86039481,3342.2,3341.7,3.2078]
[1736956690034,5.86039481,3342.2,3342.1,0.59841]
[1736956690237,0.59838,3342.3,3342.1,0.59841]
[1736956690432,0.5984,3342.2,3342.0,0.59842]
[1736956690634,0.59839,3342.3,3342.1,0.5984]
[1736956690839,0.59836,3342.4,3342.2,0.59838]
[1736956691031,0.59837,3342.3,3342.1,1.9944]
[1736956691233,0.59837,3342.3,3342.1,1.396]
[1736956691430,0.59839,3342.2,3342.1,1.396]
[1736956692044,3.2078,3342.5,3342.1,1.396]
[1736956692240,0.59839,3342.2,3342.1,1.396]
[1736956692633,3.2078,3342.5,3341.4,43.4575]
[1736956692833,6.12807953,3342.5,3341.5,1.396]
[1736956693037,3.2078,3342.1,3341.7,0.59847]
[1736956693339,3.80622,3342.1,3341.5,1.396]
[1736956693542,3.80621,3342.1,3341.9,0.59844]
[1736956693738,3.2078,3342.1,3341.6,1.396]
[1736956693944,0.59848,3341.7,3341.6,1.396]
[1736956694333,3.80628,3341.7,3341.6,1.396]
[1736956694540,3.2078,3341.7,3340.4,3.2078]
[1736956694844,0.5986,3341.1,3340.9,0.59861]
[1736956695143,0.5986,3341.1,3341.0,40.0]
[1736956695643,3.2078,3341.2,3340.7,3.5354]
[1736956695847,0.59862,3341.0,3340.9,0.59862]
[1736956696144,0.5986,3341.1,3340.9,0.59862]
[1736956696643,3.2078,3341.2,3340.8,40.0]
[1736956696844,3.2078,3341.2,3341.1,0.59859]
[1736956697242,3.2078,3341.2,3340.8,40.0]
[1736956697444,0.59862,3340.9,3340.7,1.396]
[1736956697639,3.5525,3341.1,3340.3,6.7997]
[1736956697840,0.59864,3340.9,3340.7,0.59865]
[1736956698037,0.59864,3340.9,3340.4,41.397]
[1736956698245,3.5525,3341.1,3340.4,41.397]
[1736956698548,0.59864,3340.9,3340.4,41.397]
[1736956698841,3.5525,3341.1,3340.3,1.7576]
[1736956699048,3.2078,3340.4,3339.6,1.397]
[1736956699246,0.59877,3340.1,3339.8,0.59881]
[1736956699550,0.59882,3339.9,3339.7,40.0]
[1736956699747,5.7435195,3340.3,3339.7,40.0]
[1736956700047,0.59878,3340.1,3339.8,0.59882]
[1736956700246,3.4699,3340.3,3339.6,1.397]
[1736956700441,0.59879,3340.0,3339.7,0.59883]
[1736956700642,0.59879,3340.0,3339.7,0.59884]
[1736956700847,5.4814195,3340.0,3339.2,3.646]
[1736956701042,0.59888,3339.5,3339.3,1.9959]
[1736956701247,2.2736195,3339.7,3339.2,1.8117]
[1736956701544,0.59888,3339.5,3339.3,0.59891]
[1736956701939,2.92839669,3339.9,3339.1,1.397]
[1736956702144,0.5989,3339.4,3339.2,0.59892]
[1736956702343,3.29362763,3339.8,3339.1,41.397]
[1736956702545,0.59883,3339.8,3339.6,0.59885]
[1736956702745,3.2078,3340.0,3339.6,0.59885]
[1736956702941,0.59882,3339.8,3339.1,41.397]
[1736956703145,0.59883,3339.7,3339.5,0.59886]
[1736956703346,0.59882,3339.8,3339.6,0.59884]
[1736956703546,0.59882,3339.8,3339.1,41.397]
[1736956703547,0.5988,3339.9,3339.7,0.59882]
[1736956704149,0.59881,3339.8,3339.7,0.59882]
[1736956705349,0.59881,3339.8,3339.4,0.59888]
[1736956705546,0.59892,3339.2,3339.1,1.99593]
[1736956705745,0.59895,3339.1,3339.0,0.59895]
[1736956705952,0.59895,3339.1,3339.0,1.99595]
[1736956706153,0.59897,3339.0,3338.8,40.0]
[1736956706346,0.59896,3339.0,3338.9,1.397]
[1736956706541,0.59898,3338.9,3338.7,2.47141]
[1736956706952,3.2078,3339.2,3338.7,1.8724]
[1736956707452,3.2078,3339.2,3338.7,5.0802]
[1736956707750,0.59894,3339.1,3339.0,0.59896]
[1736956707947,3.2078,3339.2,3338.7,5.0802]
[1736956708148,3.80672,3339.2,3339.1,0.59894]
[1736956708356,3.2078,3339.2,3339.1,0.59894]
[1736956708652,3.80672,3339.2,3339.1,0.59894]
[1736956708854,3.2078,3339.2,3339.1,0.59894]